[Event "Titled Tuesday Blitz March 01 Early 2022"]
[White "Ambartsumova, Karina"]
[Black "Warmerdam, Max"]
[WhiteFideId "4166299"]
[BlackFideId "1048104"]
[WhiteElo "2262"]
[BlackElo "2537"]
[Result "0-1"]
[Round "06"]
[TimeControl "180+1"]
[Date "2022.03.01"]
[WhiteClock "0:00:25"]
[BlackClock "0:01:53"]

1. d4 {[%clk 0:02:59]}  d5 {[%clk 0:02:59]} 2. c4 {[%clk 0:02:58]}  e6 {[%clk 0:02:56]} 3. Nf3 {[%clk 0:02:56]}  a6 {[%clk 0:02:56]} 4. cxd5 {[%clk 0:02:50]}  exd5 {[%clk 0:02:57]} 5. Nc3 {[%clk 0:02:50]}  c6 {[%clk 0:02:57]} 6. Bf4 {[%clk 0:02:47]}  Bd6 {[%clk 0:02:57]} 7. Bg3 {[%clk 0:02:47]}  Ne7 {[%clk 0:02:57]} 8. e3 {[%clk 0:02:47]}  O-O {[%clk 0:02:55]} 9. Bd3 {[%clk 0:02:46]}  Nf5 {[%clk 0:02:54]} 10. Qc2 {[%clk 0:02:46]}  g6 {[%clk 0:02:54]} 11. Bxd6 {[%clk 0:02:29]}  Nxd6 {[%clk 0:02:55]} 12. h4 {[%clk 0:02:26]}  Bf5 {[%clk 0:02:27]} 13. h5 {[%clk 0:02:18]}  Nd7 {[%clk 0:02:27]} 14. Bxf5 {[%clk 0:01:58]}  Nxf5 {[%clk 0:02:25]} 15. g4 {[%clk 0:01:59]}  Nd6 {[%clk 0:02:25]} 16. O-O-O {[%clk 0:01:34]}  Nf6 {[%clk 0:02:25]} 17. Ne5 {[%clk 0:01:30]}  Nc4 {[%clk 0:02:24]} 18. hxg6 {[%clk 0:01:23]}  fxg6 {[%clk 0:02:20]} 19. Nxg6 {[%clk 0:01:19]}  Rf7 {[%clk 0:02:18]} 20. Ne5 {[%clk 0:01:15]}  Rg7 {[%clk 0:02:18]} 21. Rdg1 {[%clk 0:01:10]}  Qe8 {[%clk 0:02:16]} 22. g5 {[%clk 0:01:08]}  Nxe5 {[%clk 0:02:10]} 23. dxe5 {[%clk 0:00:49]}  Nd7 {[%clk 0:02:09]} 24. f4 {[%clk 0:00:49]}  Nc5 {[%clk 0:02:02]} 25. Rh6 {[%clk 0:00:48]}  Rd8 {[%clk 0:01:55]} 26. g6 {[%clk 0:00:28]}  hxg6 {[%clk 0:01:56]} 27. Rhxg6 {[%clk 0:00:28]}  Rd7 {[%clk 0:01:57]} 28. Ne2 {[%clk 0:00:25]}  Ne4 {[%clk 0:01:53]} 29. Nd4 {[%clk 0:00:25]}  Rxg6 {[%clk 0:01:53]} 0-1


[Site "https://www.chess.com"]

[Event "Titled Tuesday Blitz March 01 Early 2022"]
[White "Astasio Lopez, David"]
[Black "Bintang, Rasyid A. Hidayat"]
[WhiteFideId "2230208"]
[BlackFideId "7105355"]
[WhiteElo "2355"]
[BlackElo "2366"]
[Result "1-0"]
[Round "06"]
[TimeControl "180+1"]
[Date "2022.03.01"]
[WhiteClock "0:01:34"]
[BlackClock "0:00:18"]

1. d4 {[%clk 0:03:00]}  d5 {[%clk 0:02:57]} 2. Nf3 {[%clk 0:02:59]}  Nc6 {[%clk 0:02:56]} 3. Nbd2 {[%clk 0:03:00]}  Bg4 {[%clk 0:02:44]} 4. c3 {[%clk 0:03:00]}  e6 {[%clk 0:02:26]} 5. e3 {[%clk 0:02:56]}  Bd6 {[%clk 0:02:25]} 6. Qb3 {[%clk 0:02:53]}  Rb8 {[%clk 0:02:22]} 7. Qa4 {[%clk 0:02:49]}  Ne7 {[%clk 0:02:19]} 8. Ne5 {[%clk 0:02:49]}  Bxe5 {[%clk 0:01:54]} 9. dxe5 {[%clk 0:02:50]}  O-O {[%clk 0:01:51]} 10. Qxg4 {[%clk 0:02:48]}  Ng6 {[%clk 0:01:41]} 11. f4 {[%clk 0:02:44]}  f5 {[%clk 0:01:39]} 12. Qg3 {[%clk 0:02:34]}  Nce7 {[%clk 0:01:31]} 13. Nb3 {[%clk 0:02:32]}  b6 {[%clk 0:01:30]} 14. Be2 {[%clk 0:02:26]}  Qd7 {[%clk 0:01:29]} 15. O-O {[%clk 0:02:25]}  a5 {[%clk 0:01:27]} 16. Nd4 {[%clk 0:02:17]}  c5 {[%clk 0:01:17]} 17. Bb5 {[%clk 0:02:17]}  Qc8 {[%clk 0:01:15]} 18. Nf3 {[%clk 0:02:17]}  Kh8 {[%clk 0:01:00]} 19. Qh3 {[%clk 0:02:11]}  Ng8 {[%clk 0:00:54]} 20. Ng5 {[%clk 0:01:57]}  h6 {[%clk 0:00:46]} 21. b3 {[%clk 0:01:56]}  N8e7 {[%clk 0:00:41]} 22. Bb2 {[%clk 0:01:56]}  Kg8 {[%clk 0:00:42]} 23. Nf3 {[%clk 0:01:53]}  Rd8 {[%clk 0:00:29]} 24. Qg3 {[%clk 0:01:51]}  Kh7 {[%clk 0:00:29]} 25. Rac1 {[%clk 0:01:47]}  Rg8 {[%clk 0:00:21]} 26. Rfd1 {[%clk 0:01:45]}  Qf8 {[%clk 0:00:20]} 27. Qh3 {[%clk 0:01:41]}  Nh8 {[%clk 0:00:20]} 28. Ng5+ {[%clk 0:01:38]}  Kg6 {[%clk 0:00:19]} 29. Be2 {[%clk 0:01:34]}  hxg5 {[%clk 0:00:18]} 30. Qh5# {[%clk 0:01:34]} 1-0


[Site "https://www.chess.com"]

[Event "Titled Tuesday Blitz March 01 Early 2022"]
[White "Bambino Filho, Antonio Carlos"]
[Black "Manolache, Marius"]
[WhiteFideId "2113163"]
[BlackFideId "1201530"]
[WhiteElo "2452"]
[BlackElo "2389"]
[Result "0-1"]
[Round "06"]
[TimeControl "180+1"]
[Date "2022.03.01"]
[WhiteClock "0:00:12"]
[BlackClock "0:01:25"]

1. e4 {[%clk 0:03:00]}  c5 {[%clk 0:02:59]} 2. Nf3 {[%clk 0:03:01]}  e6 {[%clk 0:02:59]} 3. d4 {[%clk 0:03:01]}  cxd4 {[%clk 0:02:59]} 4. Nxd4 {[%clk 0:03:02]}  a6 {[%clk 0:03:00]} 5. c4 {[%clk 0:02:58]}  Nf6 {[%clk 0:02:59]} 6. Nc3 {[%clk 0:02:58]}  Qc7 {[%clk 0:02:59]} 7. Be2 {[%clk 0:02:57]}  b6 {[%clk 0:02:58]} 8. O-O {[%clk 0:02:58]}  Bb7 {[%clk 0:02:58]} 9. f3 {[%clk 0:02:55]}  h5 {[%clk 0:02:57]} 10. Be3 {[%clk 0:02:55]}  d6 {[%clk 0:02:55]} 11. Rc1 {[%clk 0:02:55]}  Nbd7 {[%clk 0:02:54]} 12. b4 {[%clk 0:02:48]}  Be7 {[%clk 0:02:54]} 13. a4 {[%clk 0:02:45]}  O-O {[%clk 0:02:53]} 14. Nb3 {[%clk 0:02:46]}  Rfb8 {[%clk 0:02:42]} 15. a5 {[%clk 0:02:45]}  bxa5 {[%clk 0:02:42]} 16. Nxa5 {[%clk 0:02:41]}  Bc8 {[%clk 0:02:38]} 17. Rb1 {[%clk 0:02:36]}  Ne5 {[%clk 0:02:35]} 18. Qd2 {[%clk 0:02:20]}  h4 {[%clk 0:02:25]} 19. Rfc1 {[%clk 0:02:17]}  Ng6 {[%clk 0:02:18]} 20. h3 {[%clk 0:01:54]}  Bd7 {[%clk 0:02:16]} 21. Kh1 {[%clk 0:01:37]}  Be8 {[%clk 0:02:13]} 22. f4 {[%clk 0:01:32]}  Rxb4 {[%clk 0:02:10]} 23. Rxb4 {[%clk 0:01:28]}  Qxa5 {[%clk 0:02:10]} 24. Rb7 {[%clk 0:01:20]}  Bc6 {[%clk 0:02:09]} 25. Rbb1 {[%clk 0:00:46]}  Qd8 {[%clk 0:02:06]} 26. Bf3 {[%clk 0:00:45]}  Rc8 {[%clk 0:02:05]} 27. Rd1 {[%clk 0:00:43]}  Qe8 {[%clk 0:02:04]} 28. Bd4 {[%clk 0:00:33]}  Nd7 {[%clk 0:02:01]} 29. f5 {[%clk 0:00:32]}  Nge5 {[%clk 0:02:00]} 30. fxe6 {[%clk 0:00:30]}  fxe6 {[%clk 0:02:00]} 31. Be2 {[%clk 0:00:27]}  Qg6 {[%clk 0:01:58]} 32. Rf1 {[%clk 0:00:22]}  Nf6 {[%clk 0:01:46]} 33. Bf3 {[%clk 0:00:20]}  Nh7 {[%clk 0:01:41]} 34. Bxe5 {[%clk 0:00:20]}  dxe5 {[%clk 0:01:39]} 35. Nd1 {[%clk 0:00:18]}  Ng5 {[%clk 0:01:37]} 36. Qe2 {[%clk 0:00:18]}  Nxe4 {[%clk 0:01:34]} 37. Bxe4 {[%clk 0:00:18]}  Bxe4 {[%clk 0:01:33]} 38. Ra1 {[%clk 0:00:18]}  Bd3 {[%clk 0:01:27]} 39. Qf2 {[%clk 0:00:12]}  Rf8 {[%clk 0:01:25]} 0-1


[Site "https://www.chess.com"]

[Event "Titled Tuesday Blitz March 01 Early 2022"]
[White "Bodnaruk, Anastasia"]
[Black "Wong, Yinn Long"]
[WhiteFideId "4181751"]
[BlackFideId "5707684"]
[WhiteElo "2393"]
[BlackElo "2055"]
[Result "0-1"]
[Round "06"]
[TimeControl "180+1"]
[Date "2022.03.01"]
[WhiteClock "0:00:34"]
[BlackClock "0:00:23"]

1. e4 {[%clk 0:03:00]}  e6 {[%clk 0:03:00]} 2. d4 {[%clk 0:03:00]}  d5 {[%clk 0:03:01]} 3. e5 {[%clk 0:03:01]}  c5 {[%clk 0:03:01]} 4. c3 {[%clk 0:03:01]}  Qb6 {[%clk 0:03:01]} 5. Nf3 {[%clk 0:03:00]}  Nc6 {[%clk 0:03:02]} 6. Be2 {[%clk 0:02:58]}  cxd4 {[%clk 0:03:01]} 7. cxd4 {[%clk 0:02:59]}  Nh6 {[%clk 0:03:01]} 8. b3 {[%clk 0:02:56]}  Nf5 {[%clk 0:02:50]} 9. Bb2 {[%clk 0:02:56]}  Bb4+ {[%clk 0:02:51]} 10. Kf1 {[%clk 0:02:57]}  Bd7 {[%clk 0:02:45]} 11. g4 {[%clk 0:02:53]}  Nh6 {[%clk 0:02:42]} 12. h3 {[%clk 0:02:51]}  f6 {[%clk 0:02:34]} 13. Nc3 {[%clk 0:02:38]}  fxe5 {[%clk 0:02:25]} 14. dxe5 {[%clk 0:02:38]}  Bxc3 {[%clk 0:02:14]} 15. Bxc3 {[%clk 0:02:37]}  O-O {[%clk 0:02:10]} 16. Kg2 {[%clk 0:02:33]}  Nf7 {[%clk 0:01:53]} 17. Qd2 {[%clk 0:02:23]}  Nfxe5 {[%clk 0:01:27]} 18. Rhe1 {[%clk 0:02:08]}  Ng6 {[%clk 0:01:21]} 19. Qg5 {[%clk 0:01:49]}  e5 {[%clk 0:01:02]} 20. Rad1 {[%clk 0:00:49]}  Nf4+ {[%clk 0:00:50]} 21. Kg3 {[%clk 0:00:49]}  h6 {[%clk 0:00:48]} 22. Qh4 {[%clk 0:00:48]}  e4 {[%clk 0:00:34]} 23. Nd4 {[%clk 0:00:45]}  Ng6 {[%clk 0:00:22]} 24. Qh5 {[%clk 0:00:43]}  Qc7+ {[%clk 0:00:23]} 25. Kg2 {[%clk 0:00:34]}  Nf4+ {[%clk 0:00:23]} 0-1


[Site "https://www.chess.com"]

[Event "Titled Tuesday Blitz March 01 Early 2022"]
[White "Boraso, Alessio"]
[Black "Sahin, Handenur"]
[WhiteFideId "848077"]
[BlackFideId "6334865"]
[WhiteElo "2277"]
[BlackElo "2188"]
[Result "0-1"]
[Round "06"]
[TimeControl "180+1"]
[Date "2022.03.01"]
[WhiteClock "0:00:02"]
[BlackClock "0:00:09"]

1. e4 {[%clk 0:02:56]}  e5 {[%clk 0:02:58]} 2. d4 {[%clk 0:02:55]}  exd4 {[%clk 0:02:58]} 3. c3 {[%clk 0:02:54]}  Nf6 {[%clk 0:02:51]} 4. e5 {[%clk 0:02:49]}  Ne4 {[%clk 0:02:47]} 5. cxd4 {[%clk 0:02:31]}  d5 {[%clk 0:02:46]} 6. Nc3 {[%clk 0:02:26]}  Nxc3 {[%clk 0:02:30]} 7. bxc3 {[%clk 0:02:26]}  c5 {[%clk 0:02:30]} 8. Bd3 {[%clk 0:02:26]}  cxd4 {[%clk 0:02:30]} 9. cxd4 {[%clk 0:02:26]}  Nc6 {[%clk 0:02:27]} 10. Ne2 {[%clk 0:02:00]}  Bb4+ {[%clk 0:02:13]} 11. Bd2 {[%clk 0:01:55]}  Qa5 {[%clk 0:02:13]} 12. a3 {[%clk 0:01:49]}  Bxd2+ {[%clk 0:02:05]} 13. Qxd2 {[%clk 0:01:50]}  Qa4 {[%clk 0:02:03]} 14. O-O {[%clk 0:01:46]}  Bd7 {[%clk 0:02:02]} 15. Rab1 {[%clk 0:01:36]}  Nxd4 {[%clk 0:01:49]} 16. Rxb7 {[%clk 0:01:28]}  Nxe2+ {[%clk 0:01:42]} 17. Qxe2 {[%clk 0:01:25]}  O-O {[%clk 0:01:33]} 18. Rfb1 {[%clk 0:01:13]}  Rac8 {[%clk 0:01:19]} 19. h3 {[%clk 0:00:50]}  Be6 {[%clk 0:01:12]} 20. R1b4 {[%clk 0:00:38]}  Qxa3 {[%clk 0:01:09]} 21. Qh5 {[%clk 0:00:25]}  Qc1+ {[%clk 0:00:54]} 22. Kh2 {[%clk 0:00:24]}  g6 {[%clk 0:00:54]} 23. Qh4 {[%clk 0:00:12]}  Qe1 {[%clk 0:00:42]} 24. Qf6 {[%clk 0:00:10]}  Qd2 {[%clk 0:00:27]} 25. Bb1 {[%clk 0:00:04]}  Qh6 {[%clk 0:00:25]} 26. Rh4 {[%clk 0:00:03]}  Qg7 {[%clk 0:00:25]} 27. Qe7 {[%clk 0:00:04]}  Rce8 {[%clk 0:00:23]} 28. Qg5 {[%clk 0:00:03]}  Bc8 {[%clk 0:00:20]} 29. Rxa7 {[%clk 0:00:03]}  Rxe5 {[%clk 0:00:19]} 30. Qg3 {[%clk 0:00:04]}  Re1 {[%clk 0:00:18]} 31. Bc2 {[%clk 0:00:03]}  Ra1 {[%clk 0:00:16]} 32. Rxa1 {[%clk 0:00:02]}  Qxa1 {[%clk 0:00:16]} 33. Bb3 {[%clk 0:00:03]}  Be6 {[%clk 0:00:14]} 34. Qd3 {[%clk 0:00:03]}  Qg7 {[%clk 0:00:14]} 35. g3 {[%clk 0:00:04]}  Rd8 {[%clk 0:00:13]} 36. Rd4 {[%clk 0:00:04]}  Bf5 {[%clk 0:00:12]} 37. Qd2 {[%clk 0:00:04]}  Be6 {[%clk 0:00:11]} 38. Bxd5 {[%clk 0:00:04]}  Qe5 {[%clk 0:00:09]} 39. Re4 {[%clk 0:00:01]}  Rxd5 {[%clk 0:00:09]} 40. Rxe5 {[%clk 0:00:01]}  Rxd2 {[%clk 0:00:09]} 41. Kg1 {[%clk 0:00:01]}  Rd1+ {[%clk 0:00:09]} 42. Kg2 {[%clk 0:00:02]}  Bd5+ {[%clk 0:00:10]} 43. Kh2 {[%clk 0:00:02]}  Rh1# {[%clk 0:00:09]} 0-1


[Site "https://www.chess.com"]

[Event "Titled Tuesday Blitz March 01 Early 2022"]
[White "Butti, Enrique"]
[Black "Iljin, Timofey"]
[WhiteFideId "3700470"]
[BlackFideId "14110180"]
[WhiteElo "2080"]
[BlackElo "2396"]
[Result "0-1"]
[Round "06"]
[TimeControl "180+1"]
[Date "2022.03.01"]
[WhiteClock "0:01:23"]
[BlackClock "0:02:19"]

1. d4 {[%clk 0:02:54]}  f5 {[%clk 0:02:58]} 2. Nf3 {[%clk 0:02:53]}  Nf6 {[%clk 0:02:58]} 3. g3 {[%clk 0:02:53]}  g6 {[%clk 0:02:58]} 4. Bg2 {[%clk 0:02:52]}  Bg7 {[%clk 0:02:59]} 5. O-O {[%clk 0:02:52]}  O-O {[%clk 0:03:00]} 6. c4 {[%clk 0:02:52]}  d6 {[%clk 0:03:01]} 7. Nc3 {[%clk 0:02:51]}  Qe8 {[%clk 0:03:01]} 8. d5 {[%clk 0:02:50]}  a5 {[%clk 0:03:01]} 9. Nd4 {[%clk 0:02:49]}  Na6 {[%clk 0:03:02]} 10. e4 {[%clk 0:02:38]}  fxe4 {[%clk 0:03:00]} 11. Nxe4 {[%clk 0:02:37]}  Nxe4 {[%clk 0:03:00]} 12. Bxe4 {[%clk 0:02:36]}  Bh3 {[%clk 0:03:01]} 13. Bg2 {[%clk 0:02:34]}  Bxg2 {[%clk 0:03:00]} 14. Kxg2 {[%clk 0:02:33]}  Nc5 {[%clk 0:02:59]} 15. Be3 {[%clk 0:02:17]}  Qf7 {[%clk 0:02:57]} 16. Qg4 {[%clk 0:02:00]}  Rae8 {[%clk 0:02:50]} 17. h4 {[%clk 0:01:54]}  h5 {[%clk 0:02:46]} 18. Qe2 {[%clk 0:01:50]}  e5 {[%clk 0:02:36]} 19. dxe6 {[%clk 0:01:48]}  Nxe6 {[%clk 0:02:36]} 20. Qd2 {[%clk 0:01:38]}  Bxd4 {[%clk 0:02:25]} 21. Bxd4 {[%clk 0:01:37]}  Qf3+ {[%clk 0:02:25]} 22. Kg1 {[%clk 0:01:36]}  Nf4 {[%clk 0:02:18]} 23. gxf4 {[%clk 0:01:23]}  Rxf4 {[%clk 0:02:19]} 0-1


[Site "https://www.chess.com"]

[Event "Titled Tuesday Blitz March 01 Early 2022"]
[White "Carlsson, Ludvig"]
[Black "Samadov, Read"]
[WhiteFideId "1727010"]
[BlackFideId "13417444"]
[WhiteElo "2178"]
[BlackElo "2084"]
[Result "0-1"]
[Round "06"]
[TimeControl "180+1"]
[Date "2022.03.01"]
[WhiteClock "0:01:18"]
[BlackClock "0:01:33"]

1. e4 {[%clk 0:03:00]}  c5 {[%clk 0:02:59]} 2. Nf3 {[%clk 0:03:01]}  d6 {[%clk 0:03:00]} 3. d4 {[%clk 0:03:01]}  cxd4 {[%clk 0:03:01]} 4. Nxd4 {[%clk 0:03:01]}  Nf6 {[%clk 0:03:01]} 5. Nc3 {[%clk 0:03:02]}  a6 {[%clk 0:03:02]} 6. Be2 {[%clk 0:03:00]}  e5 {[%clk 0:03:02]} 7. Nf3 {[%clk 0:02:59]}  h6 {[%clk 0:03:01]} 8. O-O {[%clk 0:02:59]}  Be6 {[%clk 0:02:57]} 9. a4 {[%clk 0:02:58]}  Be7 {[%clk 0:02:57]} 10. Nd2 {[%clk 0:02:58]}  O-O {[%clk 0:02:56]} 11. Nc4 {[%clk 0:02:57]}  Nc6 {[%clk 0:02:43]} 12. Be3 {[%clk 0:02:50]}  Rb8 {[%clk 0:02:26]} 13. Bb6 {[%clk 0:02:37]}  Qd7 {[%clk 0:02:23]} 14. Ne3 {[%clk 0:02:28]}  Bd8 {[%clk 0:02:20]} 15. a5 {[%clk 0:02:22]}  Bxb6 {[%clk 0:02:18]} 16. axb6 {[%clk 0:02:23]}  Nd4 {[%clk 0:02:19]} 17. Bc4 {[%clk 0:02:21]}  Qc6 {[%clk 0:02:13]} 18. Bxe6 {[%clk 0:02:04]}  fxe6 {[%clk 0:02:12]} 19. Qd3 {[%clk 0:01:36]}  Qxb6 {[%clk 0:02:09]} 20. Nc4 {[%clk 0:01:36]}  Qc6 {[%clk 0:02:07]} 21. Nd2 {[%clk 0:01:26]}  Rbc8 {[%clk 0:02:05]} 22. Ra5 {[%clk 0:01:20]}  Qb6 {[%clk 0:01:59]} 23. Ra2 {[%clk 0:01:17]}  Ng4 {[%clk 0:01:51]} 24. Nc4 {[%clk 0:01:17]}  Qc5 {[%clk 0:01:41]} 25. Ne3 {[%clk 0:01:17]}  Nxe3 {[%clk 0:01:38]} 26. fxe3 {[%clk 0:01:17]}  Rxf1+ {[%clk 0:01:37]} 27. Kxf1 {[%clk 0:01:18]}  Rf8+ {[%clk 0:01:37]} 28. Kg1 {[%clk 0:01:18]}  Nxc2 {[%clk 0:01:33]} 0-1


[Site "https://www.chess.com"]

[Event "Titled Tuesday Blitz March 01 Early 2022"]
[White "Caruana, Fabiano"]
[Black "Alavi, Sayed Javad"]
[WhiteFideId "2020009"]
[BlackFideId "12500607"]
[WhiteElo "2744"]
[BlackElo "2475"]
[Result "1-0"]
[Round "06"]
[TimeControl "180+1"]
[Date "2022.03.01"]
[WhiteClock "0:00:06"]
[BlackClock "0:00:03"]

1. e4 {[%clk 0:03:00]}  c6 {[%clk 0:02:59]} 2. Nf3 {[%clk 0:03:01]}  d5 {[%clk 0:03:00]} 3. Nc3 {[%clk 0:03:01]}  dxe4 {[%clk 0:03:00]} 4. Nxe4 {[%clk 0:03:01]}  Nf6 {[%clk 0:03:01]} 5. Qe2 {[%clk 0:03:02]}  Na6 {[%clk 0:03:01]} 6. Nxf6+ {[%clk 0:03:00]}  gxf6 {[%clk 0:03:02]} 7. g3 {[%clk 0:02:59]}  Nc7 {[%clk 0:02:56]} 8. Bg2 {[%clk 0:02:58]}  Bg4 {[%clk 0:02:56]} 9. O-O {[%clk 0:02:58]}  Qd7 {[%clk 0:02:55]} 10. d4 {[%clk 0:02:58]}  h5 {[%clk 0:02:51]} 11. h4 {[%clk 0:02:47]}  O-O-O {[%clk 0:02:47]} 12. Be3 {[%clk 0:02:44]}  Nd5 {[%clk 0:02:21]} 13. Rad1 {[%clk 0:02:42]}  Nxe3 {[%clk 0:02:19]} 14. Qxe3 {[%clk 0:02:43]}  Bh6 {[%clk 0:02:16]} 15. Qb3 {[%clk 0:02:38]}  e6 {[%clk 0:02:10]} 16. c4 {[%clk 0:02:37]}  Kb8 {[%clk 0:02:07]} 17. Qc3 {[%clk 0:02:26]}  Qc7 {[%clk 0:01:30]} 18. b4 {[%clk 0:02:23]}  Rhe8 {[%clk 0:01:23]} 19. Rb1 {[%clk 0:01:47]}  e5 {[%clk 0:01:20]} 20. b5 {[%clk 0:01:39]}  e4 {[%clk 0:01:07]} 21. Nd2 {[%clk 0:01:36]}  e3 {[%clk 0:01:03]} 22. Ne4 {[%clk 0:01:35]}  exf2+ {[%clk 0:00:39]} 23. Rxf2 {[%clk 0:01:33]}  f5 {[%clk 0:00:37]} 24. Ng5 {[%clk 0:01:00]}  Bg7 {[%clk 0:00:37]} 25. Rf4 {[%clk 0:00:21]}  Qxf4 {[%clk 0:00:35]} 26. gxf4 {[%clk 0:00:20]}  Bxd4+ {[%clk 0:00:36]} 27. Qxd4 {[%clk 0:00:21]}  Rxd4 {[%clk 0:00:36]} 28. bxc6 {[%clk 0:00:21]}  b6 {[%clk 0:00:35]} 29. c5 {[%clk 0:00:22]}  Kc7 {[%clk 0:00:31]} 30. cxb6+ {[%clk 0:00:22]}  axb6 {[%clk 0:00:32]} 31. Nxf7 {[%clk 0:00:22]}  Rd1+ {[%clk 0:00:22]} 32. Rxd1 {[%clk 0:00:22]}  Bxd1 {[%clk 0:00:23]} 33. Ne5 {[%clk 0:00:21]}  Ra8 {[%clk 0:00:23]} 34. Bd5 {[%clk 0:00:21]}  Ra5 {[%clk 0:00:17]} 35. Be6 {[%clk 0:00:16]}  Rc5 {[%clk 0:00:16]} 36. Kf2 {[%clk 0:00:16]}  Rc2+ {[%clk 0:00:13]} 37. Ke3 {[%clk 0:00:15]}  Bg4 {[%clk 0:00:14]} 38. Bd5 {[%clk 0:00:12]}  Re2+ {[%clk 0:00:12]} 39. Kd3 {[%clk 0:00:10]}  Rh2 {[%clk 0:00:11]} 40. Ng6 {[%clk 0:00:10]}  Rh3+ {[%clk 0:00:11]} 41. Kd4 {[%clk 0:00:10]}  Kd6 {[%clk 0:00:10]} 42. Bg2 {[%clk 0:00:05]}  Rh2 {[%clk 0:00:09]} 43. Bf1 {[%clk 0:00:05]}  Rxa2 {[%clk 0:00:09]} 44. Ne5 {[%clk 0:00:05]}  Rd2+ {[%clk 0:00:09]} 45. Kc3 {[%clk 0:00:03]}  Rd1 {[%clk 0:00:08]} 46. Bb5 {[%clk 0:00:03]}  Rh1 {[%clk 0:00:07]} 47. Nf7+ {[%clk 0:00:04]}  Kc7 {[%clk 0:00:07]} 48. Ng5 {[%clk 0:00:04]}  Rxh4 {[%clk 0:00:06]} 49. Ne6+ {[%clk 0:00:05]}  Kd6 {[%clk 0:00:04]} 50. c7 {[%clk 0:00:06]}  Rh3+ {[%clk 0:00:03]} 51. Kd4 {[%clk 0:00:05]}  Rh1 {[%clk 0:00:02]} 52. c8=Q {[%clk 0:00:05]}  Rd1+ {[%clk 0:00:03]} 53. Bd3 {[%clk 0:00:06]}  Rxd3+ {[%clk 0:00:03]} 54. Kxd3 {[%clk 0:00:06]} 1-0


[Site "https://www.chess.com"]

[Event "Titled Tuesday Blitz March 01 Early 2022"]
[White "Csonka, Balazs"]
[Black "Derraugh, Geordie"]
[WhiteFideId "742910"]
[BlackFideId "2603950"]
[WhiteElo "2404"]
[BlackElo "2116"]
[Result "1-0"]
[Round "06"]
[TimeControl "180+1"]
[Date "2022.03.01"]
[WhiteClock "0:00:04"]
[BlackClock "0:00:02"]

1. e4 {[%clk 0:03:00]}  c5 {[%clk 0:02:58]} 2. Nf3 {[%clk 0:03:00]}  d6 {[%clk 0:02:59]} 3. d4 {[%clk 0:02:58]}  cxd4 {[%clk 0:03:00]} 4. Nxd4 {[%clk 0:02:59]}  Nf6 {[%clk 0:03:00]} 5. Nc3 {[%clk 0:02:59]}  a6 {[%clk 0:03:00]} 6. Be3 {[%clk 0:02:56]}  e5 {[%clk 0:03:00]} 7. Nb3 {[%clk 0:02:56]}  Be6 {[%clk 0:03:01]} 8. f3 {[%clk 0:02:56]}  Nbd7 {[%clk 0:03:00]} 9. Qd2 {[%clk 0:02:53]}  b5 {[%clk 0:03:00]} 10. O-O-O {[%clk 0:02:43]}  Nb6 {[%clk 0:03:00]} 11. Qf2 {[%clk 0:02:38]}  Na4 {[%clk 0:02:56]} 12. Nxa4 {[%clk 0:02:15]}  bxa4 {[%clk 0:02:55]} 13. Nc5 {[%clk 0:02:16]}  Bxa2 {[%clk 0:02:40]} 14. Nxa4 {[%clk 0:02:12]}  Qa5 {[%clk 0:02:36]} 15. b3 {[%clk 0:02:01]}  Rb8 {[%clk 0:02:26]} 16. Bb6 {[%clk 0:00:43]}  Qb4 {[%clk 0:02:26]} 17. Kb2 {[%clk 0:00:39]}  Bxb3 {[%clk 0:02:22]} 18. cxb3 {[%clk 0:00:34]}  Nd7 {[%clk 0:02:18]} 19. Qd2 {[%clk 0:00:13]}  Qxd2+ {[%clk 0:01:54]} 20. Rxd2 {[%clk 0:00:14]}  Nxb6 {[%clk 0:01:54]} 21. Nxb6 {[%clk 0:00:14]}  Rxb6 {[%clk 0:01:55]} 22. Bc4 {[%clk 0:00:14]}  a5 {[%clk 0:01:27]} 23. Ra1 {[%clk 0:00:14]}  Be7 {[%clk 0:01:13]} 24. Rxa5 {[%clk 0:00:14]}  O-O {[%clk 0:01:13]} 25. Ra7 {[%clk 0:00:11]}  Bg5 {[%clk 0:01:12]} 26. Rc2 {[%clk 0:00:05]}  Be3 {[%clk 0:01:12]} 27. Rd7 {[%clk 0:00:04]}  Bd4+ {[%clk 0:01:11]} 28. Kc1 {[%clk 0:00:04]}  g6 {[%clk 0:01:06]} 29. Bd5 {[%clk 0:00:03]}  Bc5 {[%clk 0:01:01]} 30. Ra2 {[%clk 0:00:03]}  Rb4 {[%clk 0:01:00]} 31. Kd2 {[%clk 0:00:03]}  Rd4+ {[%clk 0:01:00]} 32. Ke2 {[%clk 0:00:04]}  Kg7 {[%clk 0:00:57]} 33. Rd2 {[%clk 0:00:02]}  Rb4 {[%clk 0:00:53]} 34. Rc2 {[%clk 0:00:03]}  Rbb8 {[%clk 0:00:48]} 35. Ra2 {[%clk 0:00:02]}  g5 {[%clk 0:00:43]} 36. Kd3 {[%clk 0:00:02]}  Kg6 {[%clk 0:00:44]} 37. Ra6 {[%clk 0:00:02]}  h5 {[%clk 0:00:42]} 38. h3 {[%clk 0:00:02]}  Rb4 {[%clk 0:00:40]} 39. Ke2 {[%clk 0:00:02]}  Rd4 {[%clk 0:00:39]} 40. Rc6 {[%clk 0:00:02]}  Rb4 {[%clk 0:00:22]} 41. Rcc7 {[%clk 0:00:02]}  g4 {[%clk 0:00:17]} 42. Bxf7+ {[%clk 0:00:01]}  Kf6 {[%clk 0:00:17]} 43. hxg4 {[%clk 0:00:01]}  hxg4 {[%clk 0:00:17]} 44. Bc4 {[%clk 0:00:02]}  gxf3+ {[%clk 0:00:17]} 45. gxf3 {[%clk 0:00:03]}  Rbb8 {[%clk 0:00:14]} 46. Rf7+ {[%clk 0:00:03]}  Rxf7 {[%clk 0:00:14]} 47. Rxf7+ {[%clk 0:00:04]}  Kg6 {[%clk 0:00:15]} 48. Rf5 {[%clk 0:00:04]}  Rh8 {[%clk 0:00:14]} 49. Kd3 {[%clk 0:00:04]}  Rh2 {[%clk 0:00:14]} 50. Bf7+ {[%clk 0:00:04]}  Kg7 {[%clk 0:00:14]} 51. Kc4 {[%clk 0:00:05]}  Rc2+ {[%clk 0:00:11]} 52. Kd5 {[%clk 0:00:05]}  Rb2 {[%clk 0:00:11]} 53. Kc6 {[%clk 0:00:05]}  Kf8 {[%clk 0:00:08]} 54. Bc4+ {[%clk 0:00:05]}  Ke7 {[%clk 0:00:09]} 55. Rf7+ {[%clk 0:00:05]}  Ke8 {[%clk 0:00:09]} 56. Rh7 {[%clk 0:00:05]}  Rf2 {[%clk 0:00:09]} 57. Bf7+ {[%clk 0:00:04]}  Kf8 {[%clk 0:00:09]} 58. Bh5 {[%clk 0:00:04]}  Rb2 {[%clk 0:00:09]} 59. Bf7 {[%clk 0:00:04]}  Rf2 {[%clk 0:00:08]} 60. Bh5 {[%clk 0:00:04]}  Rb2 {[%clk 0:00:08]} 61. Rf7+ {[%clk 0:00:05]}  Kg8 {[%clk 0:00:08]} 62. Rb7 {[%clk 0:00:05]}  Rc2 {[%clk 0:00:05]} 63. Kd5 {[%clk 0:00:04]}  Rb2 {[%clk 0:00:04]} 64. Ke6 {[%clk 0:00:02]}  Rh2 {[%clk 0:00:05]} 65. Bf7+ {[%clk 0:00:02]}  Kf8 {[%clk 0:00:04]} 66. Bg6 {[%clk 0:00:02]}  Rh3 {[%clk 0:00:03]} 67. Rf7+ {[%clk 0:00:02]}  Kg8 {[%clk 0:00:03]} 68. Rf5 {[%clk 0:00:02]}  Rh6 {[%clk 0:00:03]} 69. Kf6 {[%clk 0:00:02]}  Rh3 {[%clk 0:00:03]} 70. Bf7+ {[%clk 0:00:01]}  Kf8 {[%clk 0:00:03]} 71. Bd5 {[%clk 0:00:02]}  Ke8 {[%clk 0:00:02]} 72. Ke6 {[%clk 0:00:02]}  Kd8 {[%clk 0:00:02]} 73. Rf8+ {[%clk 0:00:02]}  Kc7 {[%clk 0:00:03]} 74. Rf7+ {[%clk 0:00:02]}  Kb6 {[%clk 0:00:03]} 75. Kd7 {[%clk 0:00:03]}  Kb5 {[%clk 0:00:03]} 76. Kc8 {[%clk 0:00:03]}  Kb4 {[%clk 0:00:03]} 77. Rb7+ {[%clk 0:00:03]}  Kc3 {[%clk 0:00:04]} 78. Kc7 {[%clk 0:00:04]}  Rh4 {[%clk 0:00:04]} 79. Kc6 {[%clk 0:00:04]}  Rf4 {[%clk 0:00:04]} 80. Rb5 {[%clk 0:00:04]}  Rxf3 {[%clk 0:00:04]} 81. Rxc5+ {[%clk 0:00:04]}  dxc5 {[%clk 0:00:05]} 82. Kxc5 {[%clk 0:00:05]}  Rf8 {[%clk 0:00:02]} 83. b4 {[%clk 0:00:05]}  Rc8+ {[%clk 0:00:02]} 84. Bc6 {[%clk 0:00:04]} 1-0


[Site "https://www.chess.com"]